fUST/lending_fUST_20250707
["ID","MTS","AMOUNT","RATE_DAILY","PERIOD"]
[370077392,1751874733456,-500.0,0.00022282,2]
[370077393,1751874733466,-500.0,0.00022282,2]
[370077394,1751874733475,-25000.0,0.00022282,2]
[370077395,1751874733484,-500.0,0.00022282,2]
[370077396,1751874733494,-151.0,0.00022282,2]
[370077397,1751874733504,-151.0,0.00022282,2]
[370077398,1751874733513,-500.0,0.00022282,2]
[370077399,1751874733523,-151.0,0.00022282,2]
[370077400,1751874733533,-151.0,0.00022282,2]
[370077401,1751874733542,-500.0,0.00022282,2]
[370077402,1751874733552,-1535.21994195,0.00022282,2]
[370077403,1751874733561,-203.28745362,0.00022282,2]
[370077404,1751874733570,-151.0,0.00022282,2]
[370077405,1751874733580,-508.82760977,0.00022282,2]
[370077406,1751874733590,-151.0,0.00022282,2]
[370077407,1751874733600,-151.0,0.00022282,2]
[370077408,1751874733609,-516.51,0.00022283,2]
[370077409,1751874733619,-502.13,0.00022283,2]
[370077410,1751874733629,-460.0,0.00022283,2]
[370077411,1751874733639,-5847.9,0.00022283,2]
[370077412,1751874733650,-462.21,0.00022284,2]
[370077413,1751874733660,-3915.6,0.00022284,2]
[370077414,1751874733672,-598.2,0.00022284,2]
[370077415,1751874733682,-2220.21,0.00022284,2]
[370077416,1751874733692,-596.4,0.00022284,2]
[370077417,1751874733701,-791.73,0.00022284,2]
[370077418,1751874733711,-500.96,0.00022284,2]
[370077419,1751874733721,-908.31,0.00022284,2]
[370077420,1751874733731,-3498.14,0.00022284,2]
[370077421,1751874733741,-7001.38,0.00022284,2]
[370077422,1751874733751,-802.05,0.00022284,2]
[370077423,1751874733761,-2963.68,0.00022284,2]
[370077424,1751874733771,-960.04,0.00022284,2]
[370077425,1751874733781,-515.59,0.00022284,2]
[370077426,1751874733791,-1138.73,0.00022284,2]
[370077427,1751874733800,-460.0,0.00022285,2]
[370077428,1751874733810,-460.0,0.00022285,2]
[370077429,1751874733820,-460.0,0.00022285,2]
[370077430,1751874733830,-460.0,0.00022285,2]
[370077431,1751874733840,-460.0,0.00022285,2]
[370077432,1751874733850,-517.45498647,0.00022285,2]
[370077433,1751874733860,-800.94,0.00022285,2]
[370077434,1751874733870,-1010.27,0.00022285,2]
[370077435,1751874733879,-545.09,0.00022286,2]
[370077436,1751874733888,-595.03,0.00022286,2]
[370077437,1751874733898,-460.0,0.00022286,2]
[370077438,1751874733907,-475.53505614,0.00022286,2]
[370077439,1751874733916,-853.89,0.00022286,2]
[370077440,1751874733926,-653.05,0.00022286,2]
[370077441,1751874733935,-1467.27,0.00022286,2]
[370077442,1751874733944,-558.67,0.00022286,2]
[370077443,1751874733953,-1277.64,0.00022286,2]
[370077444,1751874733962,-875.52,0.00022286,2]
[370077445,1751874733971,-1859.47,0.00022286,2]
[370077446,1751874733981,-353.13,0.00022286,2]
[370077447,1751874733990,-667.38,0.00022286,2]
[370077448,1751874733999,-462.72,0.00022286,2]
[370077449,1751874734009,-476.25,0.00022287,2]
[370077450,1751874734018,-460.0,0.00022287,2]
[370077451,1751874734027,-536.66,0.00022287,2]
[370077452,1751874734037,-487.81,0.00022287,2]
[370077453,1751874734047,-1189.7,0.00022287,2]
[370077454,1751874734057,-1405.47,0.00022287,2]
[370077455,1751874734066,-470.64,0.00022287,2]
[370077456,1751874734075,-1319.88,0.00022287,2]
[370077457,1751874734085,-760.73,0.00022287,2]
[370077458,1751874734095,-1793.32,0.00022287,2]
[370077459,1751874734105,-460.0,0.00022287,2]
[370077460,1751874734115,-469.92945925,0.00022287,2]
[370077461,1751874734124,-801.02,0.00022287,2]
[370077462,1751874734133,-484.77,0.00022287,2]
[370077463,1751874734143,-485.52,0.00022287,2]
[370077464,1751874734153,-9292.4,0.00022287,2]
[370077465,1751874734162,-752.99,0.00022287,2]
[370077466,1751874734172,-2399.68,0.00022287,2]
[370077467,1751874734182,-1940.76,0.00022287,2]
[370077468,1751874734194,-465.87617132,0.00022287,2]
[370077469,1751874734205,-1002.05,0.00022287,2]
[370077470,1751874734215,-1775.53,0.00022287,2]
[370077471,1751874734225,-833.33,0.00022288,2]
[370077472,1751874734241,-479.16,0.00022288,2]
[370077473,1751874734250,-789.93,0.00022288,2]
[370077474,1751874734260,-202.08980861,0.00022288,2]
[370077475,1751874734271,-460.0,0.00022288,2]
[370077476,1751874734282,-1358.8,0.00022288,2]
[370077477,1751874734291,-474.49,0.00022288,2]
[370077478,1751874734301,-1067.63,0.00022288,2]
[370077479,1751874734314,-484.4,0.00022288,2]
[370077480,1751874734326,-636.05,0.00022288,2]
[370077481,1751874734337,-159.12,0.00022288,2]
[370077482,1751874734347,-590.88699947,0.00022288,2]
[370077483,1751874734358,-1217.52,0.00022288,2]
[370077484,1751874734369,-470.3491669,0.00022288,2]
[370077485,1751874734380,-598.99,0.00022288,2]
[370077486,1751874734389,-460.0,0.00022288,2]
[370077487,1751874734400,-460.0,0.00022288,2]
[370077488,1751874734410,-371.69286673,0.00022288,2]
[370077489,1751874734419,-460.0,0.00022288,2]
[370077490,1751874734429,-460.44,0.00022288,2]
[370077491,1751874734438,-234.72868028,0.00022288,2]
[370077492,1751874734448,-460.0,0.00022288,2]
[370077493,1751874734458,-568.83,0.00022288,2]
[370077494,1751874734467,-460.0,0.00022288,2]
[370077495,1751874734477,-460.0,0.00022288,2]
[370077496,1751874734487,-460.0,0.00022288,2]
[370077497,1751874734496,-1142.62,0.00022288,2]
[370077498,1751874734506,-3875.46,0.00022288,2]
[370077499,1751874734515,-484.93,0.00022288,2]
[370077500,1751874734537,-528.31164669,0.00022288,2]
[370077501,1751874734557,-661.69,0.00022288,2]
[370077502,1751874734575,-460.0,0.00022288,2]
[370077503,1751874734598,-460.0,0.00022288,2]
[370077504,1751874734617,-460.0,0.00022288,2]
[370077505,1751874734637,-3246.94,0.00022288,2]
[370077506,1751874734656,-503.41,0.00022288,2]
[370077507,1751874734673,-499.04,0.00022288,2]
[370077508,1751874734693,-2096.65,0.00022288,2]
[370077509,1751874734715,-516.94,0.00022288,2]
[370077510,1751874734729,-503.05,0.00022288,2]
[370077511,1751874734748,-460.0,0.00022288,2]
[370077512,1751874734764,-460.0,0.0002229,2]
[370077513,1751874734782,-1143.07,0.0002229,2]
[370077514,1751874734799,-338.33,0.0002229,2]
[370077515,1751874734816,-460.0,0.0002229,2]
[370077516,1751874734833,-904.25,0.0002229,2]
[370077517,1751874734849,-471.71,0.00022291,2]
[370077518,1751874734866,-427.6,0.00022291,2]
[370077519,1751874734885,-1952.44731812,0.00022314,7]
[370077520,1751874734901,-716.195754,0.00022337,2]
[370077521,1751874734918,-316.6,0.00022375,5]
[370077522,1751874734934,-742.6949969,0.00022392,2]
[370077523,1751874734950,-770.17471178,0.00022447,2]
[370077524,1751874734968,-300.0,0.00022466,2]
[370077525,1751874734986,-250.0,0.00022466,2]
[370077526,1751874735002,-130467.78417314,0.0002249,7]
[370077527,1751874735018,-151.0,0.0002249,7]
[370077528,1751874735033,-151.0,0.0002249,7]
[370077529,1751874735050,-151.0,0.0002249,7]
[370077530,1751874735067,-1005.08652503,0.000225,2]
[370077531,1751874735084,-12584.46609586,0.000225,7]
[370077532,1751874735100,-848.27993403,0.000225,7]
[370077533,1751874735115,-214.06929976,0.000225,7]
[370077534,1751874735132,-524.98484073,0.000225,7]
[370077535,1751874735149,-160.0,0.000225,7]
[370077536,1751874735166,-798.67117612,0.00022502,2]
[370077537,1751874735182,-516.51,0.00022557,2]
[370077538,1751874735199,-502.13,0.00022557,2]
[370077539,1751874735215,-460.0,0.00022557,2]
[370077540,1751874735236,-5847.9,0.00022557,2]
[370077541,1751874735252,-828.22200964,0.00022557,2]
[370077542,1751874735268,-462.21,0.00022558,2]
[370077543,1751874735284,-3915.6,0.00022558,2]
[370077544,1751874735299,-598.2,0.00022558,2]
[370077545,1751874735314,-2220.21,0.00022558,2]
[370077546,1751874735330,-596.4,0.00022558,2]
[370077547,1751874735343,-791.73,0.00022558,2]
[370077548,1751874735359,-500.96,0.00022558,2]
[370077549,1751874735373,-908.31,0.00022558,2]
[370077550,1751874735388,-3498.14,0.00022558,2]
[370077551,1751874735404,-7001.38,0.00022558,2]
[370077552,1751874735420,-802.05,0.00022558,2]
[370077553,1751874735437,-2963.68,0.00022558,2]
[370077554,1751874735455,-960.04,0.00022558,2]
[370077555,1751874735471,-515.59,0.00022558,2]
[370077556,1751874735486,-1138.73,0.00022558,2]
[370077557,1751874735502,-460.0,0.00022559,2]
[370077558,1751874735519,-460.0,0.00022559,2]
[370077559,1751874735535,-460.0,0.00022559,2]
[370077560,1751874735552,-800.94,0.00022559,2]
[370077561,1751874735567,-1010.27,0.00022559,2]
[370077562,1751874735582,-545.09,0.0002256,2]
[370077563,1751874735598,-595.03,0.0002256,2]
[370077564,1751874735613,-460.0,0.0002256,2]
[370077565,1751874735629,-853.89,0.0002256,2]
[370077566,1751874735643,-653.05,0.0002256,2]
[370077567,1751874735659,-1467.27,0.0002256,2]
[370077568,1751874735674,-558.67,0.0002256,2]
[370077569,1751874735689,-1277.64,0.0002256,2]
[370077570,1751874735703,-875.52,0.0002256,2]
[370077571,1751874735719,-1859.47,0.0002256,2]
[370077572,1751874735734,-667.38,0.0002256,2]
[370077573,1751874735750,-462.72,0.0002256,2]
[370077574,1751874735765,-476.25,0.00022561,2]
[370077575,1751874735780,-460.0,0.00022561,2]
[370077576,1751874735796,-536.66,0.00022561,2]
[370077577,1751874735811,-487.81,0.00022561,2]
[370077578,1751874735826,-1189.7,0.00022561,2]
[370077579,1751874735840,-1405.47,0.00022561,2]
[370077580,1751874735856,-470.64,0.00022561,2]
[370077581,1751874735871,-1319.88,0.00022561,2]
[370077582,1751874735886,-760.73,0.00022561,2]
[370077583,1751874735901,-1793.32,0.00022561,2]
[370077584,1751874735916,-460.0,0.00022561,2]
[370077585,1751874735931,-801.02,0.00022561,2]
[370077586,1751874735946,-484.77,0.00022561,2]
[370077587,1751874735961,-485.52,0.00022561,2]
[370077588,1751874735976,-9292.4,0.00022561,2]
[370077589,1751874735991,-752.99,0.00022561,2]
[370077590,1751874736005,-2399.68,0.00022561,2]
[370077591,1751874736019,-1940.76,0.00022561,2]
[370077592,1751874736035,-1002.05,0.00022561,2]
[370077593,1751874736050,-833.33,0.00022562,2]
[370077594,1751874736064,-479.16,0.00022562,2]
[370077595,1751874736078,-789.93,0.00022562,2]
[370077596,1751874736093,-460.0,0.00022562,2]
[370077597,1751874736108,-1358.8,0.00022562,2]
[370077598,1751874736124,-474.49,0.00022562,2]
[370077599,1751874736138,-1067.63,0.00022562,2]
[370077600,1751874736154,-484.4,0.00022562,2]
[370077601,1751874736168,-636.05,0.00022562,2]
[370077602,1751874736184,-1217.52,0.00022562,2]
[370077603,1751874736200,-598.99,0.00022562,2]
[370077604,1751874736216,-521.86942975,0.00022562,2]
[370077605,1751874736232,-197.49317403,0.00022562,2]
[370077606,1751874736247,-468.45490338,0.00022562,2]
[370077607,1751874736263,-460.44,0.00022562,2]
[370077608,1751874736278,-568.83,0.00022562,2]
[370077609,1751874736293,-436.4440194,0.00022562,2]
[370077610,1751874736310,-460.0,0.00022562,2]
[370077611,1751874736325,-1142.62,0.00022562,2]
[370077612,1751874736340,-3875.46,0.00022562,2]
[370077613,1751874736356,-484.93,0.00022562,2]
[370077614,1751874736370,-661.69,0.00022562,2]
[370077615,1751874736384,-516.22,0.00022562,2]
[370077616,1751874736399,-460.0,0.00022562,2]
[370077617,1751874736414,-490.52,0.00022562,2]
[370077618,1751874736428,-3246.94,0.00022562,2]
[370077619,1751874736674,-503.41,0.00022562,2]
[370077620,1751874736725,-499.04,0.00022562,2]
[370077621,1751874736735,-2096.65,0.00022562,2]
[370077622,1751874736745,-503.05,0.00022562,2]
[370077623,1751874736754,-460.0,0.00022562,2]
[370077624,1751874736763,-151.0,0.00022563,7]
[370077625,1751874736773,-517.499024,0.00022563,2]
[370077626,1751874736782,-517.499024,0.00022563,2]
[370077627,1751874736791,-151.0,0.00022563,7]
[370077628,1751874736801,-460.0,0.00022564,2]
[370077629,1751874736811,-1143.07,0.00022564,2]
[370077630,1751874736820,-460.0,0.00022564,2]
[370077631,1751874736830,-904.25,0.00022564,2]
[370077632,1751874736839,-471.71,0.00022565,2]
[370077633,1751874736849,-196.555937,0.00022567,7]
[370077634,1751874736858,-196.555937,0.00022567,7]
[370077635,1751874736868,-1952.44731812,0.0002259,7]
[370077636,1751874736877,-923.630268,0.00022603,2]
[370077637,1751874736887,-858.86622399,0.00022612,2]
[370077638,1751874736896,-2359.88,0.00022645,3]
[370077639,1751874736905,-4220.1822831,0.00022665,2]
[370077640,1751874736915,-890.64427428,0.00022667,2]
[370077641,1751874736924,-316.6,0.00022707,5]
[370077642,1751874736933,-633.0,0.00022712,2]
[370077643,1751874736942,-923.59811243,0.00022722,2]
[370077644,1751874736951,-2359.88,0.00022745,7]
[370077645,1751874736961,-98472.33,0.00022752,10]
[370077646,1751874736970,-123579.0,0.00022752,10]
[370077647,1751874736979,-1038.00452864,0.0002277,2]
[370077648,1751874736988,-957.77124259,0.00022777,2]
[370077649,1751874736998,-63340.0,0.0002278,10]
[370077650,1751874737007,-12584.46609586,0.000228,10]
[370077651,1751874737016,-848.27993403,0.000228,10]
[370077652,1751874737026,-214.06929976,0.000228,10]
[370077653,1751874737036,-524.98484073,0.000228,10]
[370077654,1751874737046,-300.0,0.00022802,2]
[370077655,1751874737055,-633.0,0.00022802,2]
[370077656,1751874737066,-244.38574,0.0002283,7]
[370077657,1751874737076,-244.38574,0.0002283,7]
[370077658,1751874737086,-5000.0,0.0002283,2]
[370077659,1751874737096,-25000.0,0.0002283,2]
[370077660,1751874737106,-516.51,0.00022831,2]
[370077661,1751874737116,-502.13,0.00022831,2]
[370077662,1751874737125,-524.0,0.00022831,2]
[370077663,1751874737134,-5847.9,0.00022831,2]
[370077664,1751874737145,-462.21,0.00022832,2]
[370077665,1751874737156,-3915.6,0.00022832,2]
[370077666,1751874737167,-598.2,0.00022832,2]
[370077667,1751874737177,-2220.21,0.00022832,2]
[370077668,1751874737186,-596.4,0.00022832,2]
[370077669,1751874737195,-791.73,0.00022832,2]
[370077670,1751874737206,-500.96,0.00022832,2]
[370077671,1751874737216,-908.31,0.00022832,2]
[370077672,1751874737227,-3498.14,0.00022832,2]
[370077673,1751874737239,-7001.38,0.00022832,2]
[370077674,1751874737249,-802.05,0.00022832,2]
[370077675,1751874737259,-2963.68,0.00022832,2]
[370077676,1751874737269,-960.04,0.00022832,2]
[370077677,1751874737278,-515.59,0.00022832,2]
[370077678,1751874737287,-1138.73,0.00022832,2]
[370077679,1751874737298,-993.20877856,0.00022832,2]
[370077680,1751874737307,-155.47757941,0.00022833,2]
[370077681,1751874737317,-460.0,0.00022833,2]
[370077682,1751874737327,-460.0,0.00022833,2]
[370077683,1751874737337,-800.94,0.00022833,2]
[370077684,1751874737346,-1010.27,0.00022833,2]
[370077685,1751874737355,-545.09,0.00022834,2]
[370077686,1751874737365,-595.03,0.00022834,2]
[370077687,1751874737374,-397.50059114,0.00022834,2]
[370077688,1751874737384,-853.89,0.00022834,2]
[370077689,1751874737394,-653.05,0.00022834,2]
[370077690,1751874737404,-1467.27,0.00022834,2]
[370077691,1751874737413,-558.67,0.00022834,2]
[370077692,1751874737422,-1277.64,0.00022834,2]
[370077693,1751874737432,-875.52,0.00022834,2]
[370077694,1751874737441,-1859.47,0.00022834,2]
[370077695,1751874737450,-667.38,0.00022834,2]
[370077696,1751874737460,-462.72,0.00022834,2]
[370077697,1751874737469,-476.25,0.00022835,2]
[370077698,1751874737479,-460.0,0.00022835,2]
[370077699,1751874737488,-536.66,0.00022835,2]
[370077700,1751874737498,-487.81,0.00022835,2]
[370077701,1751874737508,-1189.7,0.00022835,2]
[370077702,1751874737518,-1405.47,0.00022835,2]
[370077703,1751874737527,-470.64,0.00022835,2]
[370077704,1751874737538,-1319.88,0.00022835,2]
[370077705,1751874737548,-760.73,0.00022835,2]
[370077706,1751874737557,-1598.73279461,0.00022835,2]
[370077707,1751874737809,-194.58720539,0.00022835,2]
[370077708,1751874737819,-460.0,0.00022835,2]
[370077709,1751874737829,-801.02,0.00022835,2]
[370077710,1751874737838,-484.77,0.00022835,2]
[370077711,1751874737848,-219.64999222,0.00022835,2]
[370077712,1751874737860,-265.87000778,0.00022835,2]
[370077713,1751874737870,-8762.28461723,0.00022835,2]
[370077714,1751874737882,-530.11538277,0.00022835,2]
[370077715,1751874737892,-752.99,0.00022835,2]
[370077716,1751874737902,-2399.68,0.00022835,2]
[370077717,1751874737912,-1940.76,0.00022835,2]
[370077718,1751874737922,-1002.05,0.00022835,2]
[370077719,1751874737932,-833.33,0.00022836,2]
[370077720,1751874737943,-479.16,0.00022836,2]
[370077721,1751874737954,-789.93,0.00022836,2]
[370077722,1751874737965,-342.28477099,0.00022836,2]
[370077723,1751874737977,-1358.8,0.00022836,2]
[370077724,1751874737988,-474.49,0.00022836,2]
[370077725,1751874737997,-1067.63,0.00022836,2]
[370077726,1751874738007,-484.4,0.00022836,2]
[370077727,1751874738017,-636.05,0.00022836,2]
[370077728,1751874738026,-1217.52,0.00022836,2]
[370077729,1751874738035,-598.99,0.00022836,2]
[370077730,1751874738045,-460.44,0.00022836,2]
[370077731,1751874738055,-568.83,0.00022836,2]
[370077732,1751874738064,-240.27,0.00022836,2]
[370077733,1751874738074,-1142.62,0.00022836,2]
[370077734,1751874738083,-3875.46,0.00022836,2]
[370077735,1751874738093,-484.93,0.00022836,2]
[370077736,1751874738102,-661.69,0.00022836,2]
[370077737,1751874738112,-3246.94,0.00022836,2]
[370077738,1751874738122,-503.41,0.00022836,2]
[370077739,1751874738131,-499.04,0.00022836,2]
[370077740,1751874738140,-2096.65,0.00022836,2]
[370077741,1751874738150,-503.05,0.00022836,2]
[370077742,1751874738160,-460.0,0.00022836,2]
[370077743,1751874738169,-260.86904538,0.00022838,2]
[370077744,1751874738179,-1143.07,0.00022838,2]
[370077745,1751874738188,-251.14721333,0.00022838,2]
[370077746,1751874738198,-904.25,0.00022838,2]
[370077747,1751874738207,-471.71,0.00022839,2]
[370077748,1751874738217,-2359.88,0.00022845,6]
[370077749,1751874738229,-151.0,0.00022865,7]
[370077750,1751874738240,-151.0,0.00022865,7]
[370077751,1751874738250,-1952.44731812,0.00022866,8]
[370077752,1751874738260,-633.0,0.00022872,2]
[370077753,1751874738270,-1029.95750337,0.00022887,2]
[370077754,1751874738280,-576.0368563,0.00022904,2]
[370077755,1751874738290,-177.763542,0.00022904,2]
[370077756,1751874738300,-576.0368563,0.00022904,2]
[370077757,1751874738311,-177.763542,0.00022904,2]
[370077758,1751874738321,-340.6887123,0.00022904,2]
[370077759,1751874738331,-177.763542,0.00022904,2]
[370077760,1751874738343,-159.4922776,0.00022904,2]
[370077761,1751874738352,-159.4922776,0.00022904,2]
[370077762,1751874738362,-177.763542,0.00022904,2]
[370077763,1751874738372,-159.4922776,0.00022904,2]
[370077764,1751874738381,-177.763542,0.00022904,2]
[370077765,1751874738390,-159.4922776,0.00022904,2]
[370077766,1751874738400,-320.207857,0.00022904,2]
[370077767,1751874738410,-306.0,0.00022904,2]
[370077768,1751874738419,-60235.10748858,0.00022919,2]
[370077769,1751874738432,-665.3611948,0.00022919,2]
[370077770,1751874738453,-562.6195265,0.00017903,2]
[370077771,1751874739245,-460.0,0.00016803,2]
[370077772,1751874739255,-460.0,0.00016804,2]
[370077773,1751874739264,-460.0,0.00016804,2]
[370077774,1751874739274,-460.0,0.00016805,2]
[370077775,1751874739283,-460.0,0.00016806,2]
[370077776,1751874739292,-460.0,0.00017077,2]
[370077777,1751874739302,-286.74745078,0.00017078,2]
[370077778,1751874739319,-173.25254922,0.00017078,2]
[370077779,1751874739329,-460.0,0.00017079,2]
[370077780,1751874739339,-460.0,0.00017352,2]
[370077781,1751874739348,-151.97502221,0.00017455,2]
[370077782,1751874739358,-510.70852011,0.00017565,2]
[370077783,1751874739368,-310.1792828,0.00017626,2]
[370077784,1751874739380,-149.8207172,0.00017626,2]
[370077785,1751874739391,-460.0,0.000179,2]
[370077786,1751874739401,-2233.5704735,0.00017903,2]
[370077787,1751874739608,-460.0,0.00018174,2]
[370077788,1751874739618,-2796.19,0.00018177,2]
[370077789,1751874739628,-212.40394342,0.00018448,2]
[370077790,1751874739640,-247.59605658,0.00018448,2]
[370077791,1751874739650,-2796.19,0.00018451,2]
[370077792,1751874739660,-661.3112857,0.00018576,2]
[370077793,1751874739670,-460.0,0.00018722,2]
[370077794,1751874739680,-2796.19,0.00018725,2]
[370077795,1751874739690,-460.0,0.00018996,2]
[370077796,1751874739700,-2796.19,0.00018999,2]
[370077797,1751874739709,-2796.19,0.00019273,2]
[370077798,1751874739719,-2796.19,0.00019547,2]
[370077799,1751874739729,-2796.19,0.00019821,2]
[370077800,1751874739738,-2796.19,0.00020095,2]
[370077801,1751874739748,-2875.21,0.00020096,2]
[370077802,1751874739758,-156.53,0.00020365,2]
[370077803,1751874739768,-460.0,0.00020366,2]
[370077804,1751874739778,-2796.19,0.00020369,2]
[370077805,1751874739788,-2875.21,0.0002037,2]
[370077806,1751874739797,-460.0,0.0002064,2]
[370077807,1751874739807,-2796.19,0.00020643,2]
[370077808,1751874739816,-2875.21,0.00020644,2]
[370077809,1751874739826,-460.0,0.00020914,2]
[370077810,1751874739836,-2796.19,0.00020917,2]
[370077811,1751874739846,-2875.21,0.00020918,2]
[370077812,1751874739856,-460.0,0.00021188,2]
[370077813,1751874739866,-2796.19,0.00021191,2]
[370077814,1751874739875,-2875.21,0.00021192,2]
[370077815,1751874739885,-460.0,0.00021462,2]
[370077816,1751874739894,-2796.19,0.00021465,2]
[370077817,1751874739903,-2875.21,0.00021466,2]
[370077818,1751874739912,-324.55140937,0.00021736,2]
[370077819,1751874739922,-2796.19,0.00021739,2]
[370077820,1751874739931,-2875.21,0.0002174,2]
[370077821,1751874739941,-169.0,0.00022,2]
[370077822,1751874739950,-2796.19,0.00022013,2]
[370077823,1751874739959,-2875.21,0.00022014,2]
[370077824,1751874739969,-169.0,0.00022192,7]
[370077825,1751874739978,-151.0,0.00022282,2]
[370077826,1751874739987,-151.0,0.00022282,2]
[370077827,1751874739997,-151.0,0.00022282,2]
[370077828,1751874740007,-151.0,0.00022282,2]
[370077829,1751874740017,-151.0,0.00022282,2]
[370077830,1751874740026,-151.0,0.00022282,2]
[370077831,1751874740037,-151.0,0.00022282,2]
[370077832,1751874740047,-151.0,0.00022282,2]
[370077833,1751874740057,-151.0,0.00022282,2]
[370077834,1751874740066,-151.0,0.00022282,2]
[370077835,1751874740076,-151.0,0.00022282,2]
[370077836,1751874740086,-2875.21,0.00022288,2]
[370077837,1751874740096,-1775.53,0.00022561,2]
[370077838,1751874740106,-2875.21,0.00022562,2]
[370077839,1751874740116,-1775.53,0.00022835,2]
[370077840,1751874740127,-2875.21,0.00022836,2]
[370077841,1751874740139,-36993.57936883,0.00022919,2]
[370077842,1751874740150,-1068.065931,0.00022942,2]
[370077843,1751874740159,-2359.88,0.00022945,2]
[370077844,1751874740169,-1107.58437044,0.00022997,2]
[370077845,1751874740178,-1000.0,0.00023,23]
[370077846,1751874740188,-330.67695274,0.00023,2]
[370077847,1751874740197,-160.0,0.00023,2]
[370077848,1751874740208,-1000.0,0.0002301,5]
[370077849,1751874740219,-450.0,0.00023014,2]
[370077850,1751874740229,-327.44715269,0.00023014,2]
[370077851,1751874740241,-169.0,0.00023014,7]
[370077852,1751874740251,-316.6,0.00023039,6]
[370077853,1751874740260,-2359.88,0.00023045,3]
[370077854,1751874740271,-1148.56499215,0.00023052,2]
[370077855,1751874740281,-120391.69,0.000231,2]
[370077856,1751874740291,-53889.05,0.000231,7]
[370077857,1751874740300,-3600.55,0.000231,7]
[370077858,1751874740310,-151.0,0.000231,7]
[370077859,1751874740319,-151.0,0.000231,7]
[370077860,1751874740329,-151.0,0.000231,7]
[370077861,1751874740338,-151.0,0.000231,7]
[370077862,1751874740347,-151.0,0.000231,7]
[370077863,1751874740358,-151.0,0.000231,7]
[370077864,1751874740368,-230.48668418,0.000231,3]
[370077865,1751874740379,-12584.46609586,0.000231,3]
[370077866,1751874740389,-848.27993403,0.000231,3]
[370077867,1751874740400,-160.0,0.000231,3]
[370077868,1751874740411,-214.06929976,0.000231,3]
[370077869,1751874740422,-160.0,0.000231,3]
[370077870,1751874740432,-215.21338352,0.000231,3]
[370077871,1751874740443,-160.0,0.000231,3]
[370077872,1751874740453,-524.98484073,0.000231,3]
[370077873,1751874740464,-160.0,0.000231,3]
[370077874,1751874740479,-837.79946008,0.000231,3]
[370077875,1751874740488,-516.67374867,0.00023105,2]
[370077876,1751874740497,-502.13,0.00023105,2]
[370077877,1751874740507,-5848.13452471,0.00023105,2]
[370077878,1751874740517,-462.37,0.00023106,2]
[370077879,1751874740526,-3915.66691578,0.00023106,2]
[370077880,1751874740537,-598.43855654,0.00023106,2]
[370077881,1751874740546,-2220.3,0.00023106,2]
[370077882,1751874740556,-596.54032054,0.00023106,2]
[370077883,1751874740565,-791.92,0.00023106,2]
[370077884,1751874740575,-501.19,0.00023106,2]
[370077885,1751874740584,-908.42,0.00023106,2]
[370077886,1751874740594,-3498.19286924,0.00023106,2]
[370077887,1751874740604,-7001.50386519,0.00023106,2]
[370077888,1751874740613,-802.24,0.00023106,2]
[370077889,1751874740623,-2963.69215504,0.00023106,2]
[370077890,1751874740634,-960.24,0.00023106,2]
[370077891,1751874740644,-515.69,0.00023106,2]